Cogmind - Beta 17.1 @@@ ROGUE MODE // 2026.09.11 @ 17:17:20 Player: diglidot Result: Destroyed by YI-UF0 with YI-UF0's Doublenader Performance ------------- Evolutions (1) 500 Regions Visited (3) 600 Robots Destroyed (31) 155 Value Destroyed (747) 747 Prototype IDs (1) 20 Alien Tech Used (0) 0 Bonus (-24) -24 TOTAL SCORE: 1998 Bonus ------- Friendly Fire -24 Cogmind --------- Core Integrity 0/400 Matter 229/300 Energy 39/100 System Corruption 13% Temperature Cool (3) Movement Core (1450) Ox28 Location -9/Mines Parts ------- > --- POWER (1) -------- (None) > --- PROPULSION (2) --- (None) > --- UTILITY (4) ------ Huge Storage Unit Improved Targeting Computer > --- WEAPON (2) ------- EM Pulse Cannon > --- INVENTORY (25) --- Improved Ion Engine Advanced Treads Advanced Treads Flight Unit Flight Unit Improved Heat Sink Medium Storage Unit Medium Matter Pod (100) Structural Scanner Trap Scanner Trap Scanner Visual Processing Unit Seismic Detector Core Shielding Power Shielding Shield Generator Shield Generator Shield Generator Small Laser Particle Gun EM Pulse Cannon Peak State ------------ > --- POWER ------------ Heavy Ion Engine > --- PROPULSION ------- Advanced Treads Advanced Treads > --- UTILITY ---------- Huge Storage Unit Improved Targeting Computer Improved Targeting Computer Improved Targeting Computer > --- WEAPON ----------- EM Pulse Cannon EM Pulse Cannon > --- INVENTORY -------- Improved Ion Engine Advanced Treads Advanced Treads Flight Unit Flight Unit Improved Heat Sink Medium Storage Unit Medium Matter Pod Structural Scanner Trap Scanner Trap Scanner Visual Processing Unit Seismic Detector Core Shielding Power Shielding Shield Generator Shield Generator Shield Generator Small Laser Particle Gun EM Pulse Cannon EM Pulse Cannon Rocket Launcher [Rating: 26] Favorites ----------- Power Ion Engine Engine Ion Engine Power Core Light Nuclear Core Propulsion Light Treads Treads Light Treads Wheel Wheel Flight Unit Flight Unit Utility Improved Targeting Computer Device Heat Sink Storage Huge Storage Unit Processor Improved Targeting Computer Weapon Rocket Launcher Energy Gun Particle Gun Energy Cannon EM Pulse Cannon Ballistic Gun Assault Rifle Launcher Rocket Launcher Build | -11 -10 -9 -9 ------- Run | Yrd Mat Mat Min Slots Evolved 2 | . . 2 . Power . | . . . . Propulsion . | . . . . Utility 2 | . . 2 . Weapon . | . . . . Parts Attached 36 | 6 14 11 5 Power 5 | 1 1 3 . Engine 4 | 1 . 3 . Core 1 | . 1 . . Reactor . | . . . . Propulsion 8 | 2 2 4 . Treads 4 | 2 . 2 . Leg . | . . . . Wheel 2 | . 2 . . Hover . | . . . . Flight 2 | . . 2 . Utility 9 | 1 6 2 . Device 1 | . 1 . . Storage 4 | 1 3 . . Processor 4 | . 2 2 . Hackware . | . . . . Protection . | . . . . Artifact . | . . . . Weapon 14 | 2 5 2 5 Energy Gun 2 | . . 2 . Energy Cannon 4 | . . . 4 Ballistic Gun 4 | 2 2 . . Ballistic Cannon . | . . . . Launcher 4 | . 3 . 1 Special Weapon . | . . . . Impact Weapon . | . . . . Slashing Weapon . | . . . . Piercing Weapon . | . . . . Special Melee Weapon . | . . . . Unidentified Prototypes 1 | . . 1 . Parts Lost 14 | . . 5 9 Power 3 | . . 2 1 Propulsion 3 | . . 1 2 Utility 2 | . . . 2 Weapon 6 | . . 2 4 Highest Loss Streak 4 | . . 4 3 To Critical Strikes . | . . . . Average Backups 13 | . 5 14 22 Power . | . . . 1 Propulsion 1 | . . 2 4 Utility 7 | . 3 8 13 Weapon 2 | . 1 3 4 Tool/Special . | . . . . Unused Backups 17 | . 3 . 14 Power . | . . . . Propulsion 2 | . . . 2 Utility 14 | . 2 . 12 Weapon 1 | . 1 . . Tool/Special . | . . . . Average Slot Usage (%) 84 | . 98 94 62 Engine 7 | . 10 5 3 Core 1 | . 3 1 . Treads 17 | . 22 12 14 Wheel 3 | . 5 6 . Storage 10 | . 9 11 11 Processor 19 | . 15 32 17 Energy Gun 5 | . . 18 5 Ballistic Gun 7 | . 14 3 . Launcher 8 | . 13 . 7 Peak Build Rating 26 | 6 11 23 26 Average Rating 13 | 4 9 17 15 On Entrance 10 | . 6 11 23 Avg Prop Armor Cover (%) 14 | 37 . 5 11 Naked Turns . | . . . . Heaviest Build 100 | 12 89 92 100 Greatest Support 44 | 40 40 44 44 Greatest Overweight (x) 20 | 1 4 20 4 Average Overweight (x) 1 | . . 3 2 Largest Inventory Capacity 25 | 8 25 25 25 Average Capacity 17 | 6 9 25 25 Most Carried 23 | 3 10 23 23 Average Carried 13 | . 5 14 22 Final Capacity 25 | 8 25 25 25 Final Carried 23 | . 10 23 21 Class Distribution -------------------- 97% | Mutant Dominant Class ---------------- Mutant | -10/Materials Mutant | -9/Materials Mutant | -9/Mines Resources | -11 -10 -9 -9 ----------- Run | Yrd Mat Mat Min Matter Collected 1026 | 226 382 285 133 Remotely . | . . . . Salvage Created 870 | . 401 407 62 Parts 55 | . 29 25 1 Haulers Intercepted . | . . . . Recyclers Shooed 1 | . . 1 . Parts Field Recycled . | . . . . Retrieved Matter . | . . . . Parts Self-Destructed . | . . . . Prevented . | . . . . Parts Restored . | . . . . Kills | -11 -10 -9 -9 ------- Run | Yrd Mat Mat Min Combat Hostiles Destroyed 29 | . 8 13 8 Guns 19 | . 6 13 . Cannons 4 | . . . 4 AOE 6 | . 2 . 4 Classes Destroyed 8 | . 4 2 2 Worker 3 | . 2 . 1 Builder 2 | . 1 . 1 Watcher 4 | . 3 1 . Swarmer 7 | . . 7 . Grunt 12 | . 8 4 . Sentry 2 | . . 2 . Demolisher 1 | . . . 1 Assembled 7 | . . . 7 Best Kill Streak 8 | . 4 8 3 Combat Bots Only 8 | . 2 8 3 Max Kills in Single Turn 3 | . 3 2 2 Gunslinging 1 | . . 1 . Exploded 2 | . 2 . 2 Melee . | . . . . Uniques/NPCs Destroyed . | . . . . Combat | -11 -10 -9 -9 -------- Run | Yrd Mat Mat Min Hostile Shots Fired 209 | . 44 94 71 Missed 58 | . 9 28 21 Hits 151 | . 35 66 50 Melee 16 | . . . 16 Projectile 135 | . 35 66 34 AOE 9 | . . . 9 Critical Strikes 2 | . . 1 1 Part Disruptions 1 | . . . 1 Damage Taken 2196 | . 435 703 1058 Core 510 | . 91 191 228 Absorbed by Shields . | . . . . Core Remaining (%) 81 | 100 63 . . Volleys Fired 88 | . 37 41 10 Largest 2 | . 2 2 2 Hottest 126 | . 66 105 126 Shots Fired 172 | . 74 80 18 Gun 147 | . 67 80 . Cannon 9 | . . . 9 Launcher 16 | . 7 . 9 Special . | . . . . Kinetic 104 | . 67 37 . Thermal 43 | . . 43 . Explosive 16 | . 7 . 9 Electromagnetic 9 | . . . 9 Robot Hit Streak 20 | . 5 20 4 Robot Miss Streak 4 | . 4 2 1 Penetration Max . | . . . . Secondary Targets 7 | . 2 5 . Max Gunslinging Chain 1 | . 1 1 . Shots Hit Robots 110 | . 41 58 11 Core Hits 62 | . 27 21 14 Critical Kills . | . . . . Critical Parts Destroyed . | . . . . Critical Strikes 2 | . . 1 1 Burn 1 | . . 1 . Corrupt 1 | . . . 1 Melee Attacks . | . . . . Impact . | . . . . Slashing . | . . . . Piercing . | . . . . Sneak Attacks . | . . . . Combat Hostiles . | . . . . Follow-up Attacks . | . . . . Damage Inflicted 2010 | . 718 796 496 Guns 1189 | . 393 796 . Cannons 128 | . . . 128 Explosions 693 | . 325 . 368 Melee . | . . . . Ramming . | . . . . Kinetic 719 | . 393 326 . Thermal 470 | . . 470 . Explosive 693 | . 325 . 368 Electromagnetic 128 | . . . 128 Impact . | . . . . Slashing . | . . . . Piercing . | . . . . Highest Corruption 13 | . . 1 13 Average Corruption 7 | . . 1 9 Corruption Purged . | . . . . Corruption Blocked . | . . . . Effects 36 | . . 3 33 Message Errors 9 | . . 1 8 Matter Fused 11 | . . 1 10 Heat Flow Errors 3 | . . . 3 Energy Discharges 5 | . . . 5 Parts Fused 1 | . . . 1 Data Loss (minor) 2 | . . . 2 Misfires 4 | . . 1 3 Alerts 1 | . . . 1 Overload Shots . | . . . . Overflow Damage 20 | . 3 . 17 Projectiles . | . . . . Explosions 20 | . 3 . 17 Melee . | . . . . Knockbacks . | . . . . Impact . | . . . . Kinetic . | . . . . Secondary . | . . . . Self-Inflicted Damage 104 | . . . 104 Shots 3 | . . . 3 Rammed 1 | . . . 1 Targets Rammed 1 | . . . 1 Kicked . | . . . . Crushed . | . . . . Highest Temperature 189 | . 12 180 189 Average Temperature 50 | . 5 60 53 Received Heat Transfer 637 | . 249 228 160 Siege Activations . | . . . . Martial Activations . | . . . . Shielding Activations . | . . . . Robots Disrupted . | . . . . Combat Hostiles . | . . . . Robots Corrupted . | . . . . Combat Hostiles . | . . . . Parts Fried . | . . . . Impact Corruptions . | . . . . Robots Melted . | . . . . Combat Hostiles . | . . . . Parts Melted 1 | . . 1 . Heat Transferred 1139 | . . 1139 . Parts Sabotaged . | . . . . Parts Stolen . | . . . . Parts Stripped . | . . . . Power Chain Reactions . | . . . . Alert | -11 -10 -9 -9 ------- Run | Yrd Mat Mat Min Maximum Alert Level . | . . . . Low Security (%) 100 | 100 100 100 100 Level 1 . | . . . . Level 2 . | . . . . Level 3 . | . . . . Level 4 . | . . . . Level 5 . | . . . . High Security . | . . . . Max Security . | . . . . Peak Influence 130 | . 90 130 43 Initial 2 | . . 2 . Average 27 | . 30 64 2 Influence Increases 747 | . 346 307 94 Destroy 0b10 Robot/C 440 | . 160 260 20 Destroy 0b10 Robot/NC 45 | . 30 5 10 Destroy Leader 108 | . 56 42 10 Successful Hack 2 | . 2 . . Disable Machine 15 | . 15 . . Destroy Structure 107 | . 53 . 54 Lose Combat Pursuer 30 | . 30 . . Influence Decreases 747 | . 339 314 94 Entered New Map 5 | . . 5 . Time Decay 667 | . 339 259 69 Lost Part 75 | . . 50 25 Squads Dispatched 4 | . 2 2 . Investigation 2 | . . 2 . Extermination . | . . . . Reinforcement 2 | . 2 . . Assault . | . . . . Garrison . | . . . . Intercept . | . . . . Searches Triggered . | . . . . Construction Impeded . | . . . . Haulers Reinforced . | . . . . Active Scanning Responses . | . . . . Cargo Convoy Interrupts . | . . . . Stealth | -11 -10 -9 -9 --------- Run | Yrd Mat Mat Min Distress Signals 4 | . 1 3 . Communications Jammed . | . . . . Distress Signals . | . . . . Times Spotted 46 | . 14 15 17 Peak Tracking Total 12 | . 4 4 12 Tactical Retreats 3 | . 1 . 2 Traps | -11 -10 -9 -9 ------- Run | Yrd Mat Mat Min Traps Triggered . | . . . . Indirectly . | . . . . Trap Hack Attempts . | . . . . Triggered . | . . . . Disarmed . | . . . . Reprogrammed . | . . . . Reused . | . . . . Traps Extracted . | . . . . Installed . | . . . . Triggered . | . . . . Machines | -11 -10 -9 -9 ---------- Run | Yrd Mat Mat Min Machines Disabled 1 | . 1 . . Max in Single Turn 1 | . 1 . . Machines Repaired . | . . . . Machines Dismantled . | . . . . Machines Sabotaged . | . . . . Overloaded Fab Kills . | . . . . Hacking | -11 -10 -9 -9 --------- Run | Yrd Mat Mat Min Machines Accessed 7 | . 6 1 . Terminals 3 | . 3 . . Fabricators . | . . . . Repair Stations 1 | . 1 . . Recycling Units 2 | . 2 . . Scanalyzers 1 | . . 1 . Garrison Access . | . . . . Total Hacks 22 | . 18 4 . Successful 13 | . 12 1 . Failed 9 | . 6 3 . Catastrophic 3 | . 2 1 . Database Lockouts . | . . . . Manual 1 | . 1 . . Terminals 9 | . 9 . . Fabricators . | . . . . Repair Stations 2 | . 2 . . Recycling Units 7 | . 7 . . Scanalyzers 4 | . . 4 . Garrison Access . | . . . . Terminal Hacks 5 | . 5 . . Record 1 | . 1 . . Alert Level 1 | . 1 . . Locate Traps 2 | . 2 . . Zone Layout 1 | . 1 . . Fabricator Hacks . | . . . . Repair Station Hacks 1 | . 1 . . Scan Component 1 | . 1 . . Recycling Unit Hacks 6 | . 6 . . Recycle Component 2 | . 2 . . Process 2 | . 2 . . Report Inventory 2 | . 2 . . Scanalyzer 1 | . . 1 . Retrieve Study 1 | . . 1 . Garrison Access Hacks . | . . . . Unauthorized Hacks . | . . . . Terminals . | . . . . Fabricators . | . . . . Repair Stations . | . . . . Recycling Units . | . . . . Scanalyzers . | . . . . Garrison Access . | . . . . Data Cores Recovered . | . . . . Used . | . . . . Hacking Detections 3 | . 2 1 . Full Trace Events 2 | . 1 1 . Feedback Events 1 | . . 1 . Corruption 1 | . . 1 . Feedback Blocked . | . . . . Robot Schematics Acquired . | . . . . Robots Built . | . . . . Authchips . | . . . . Time . | . . . . Total Robot Build Rating . | . . . . Part Schematics Acquired . | . . . . Parts Built . | . . . . Authchips . | . . . . Time . | . . . . Total Part Build Rating . | . . . . Part Studies Acquired 1 | . . 1 . Parts Repaired . | . . . . Time . | . . . . Parts Recycled 2 | . 2 . . Recycled Matter 141 | . 141 . . Retrieved Matter . | . . . . Retrieved Components . | . . . . Parts Scanalyzed . | . . . . Part Schematics Acquired . | . . . . Parts Damaged . | . . . . Bothacking | -11 -10 -9 -9 ------------ Run | Yrd Mat Mat Min Used RIF Installer . | . . . . Robots Hacked . | . . . . Non-combat . | . . . . Combat . | . . . . Robot Hacks Applied . | . . . . Relay Couplers Released . | . . . . Fabnet Peak Effective % . | . . . . Robots Rewired . | . . . . Allies Hacked . | . . . . Hacks Repelled . | . . . . Allies | -11 -10 -9 -9 -------- Run | Yrd Mat Mat Min Total Allies . | . . . . Largest Group . | . . . . Highest-Rated Group . | . . . . Highest-Rated Ally . | . . . . Total Orders . | . . . . Ally Attacks . | . . . . Total Damage . | . . . . Kills . | . . . . Allies Corrupted . | . . . . Allies Melted . | . . . . Intel | -11 -10 -9 -9 ------- Run | Yrd Mat Mat Min Active Infowar (turns) . | . . . . Robot Analysis Total . | . . . . Derelict Logs Recovered 1 | . . . 1 Drone Launches . | . . . . Drone Recoveries . | . . . . Exploration | -11 -10 -9 -9 ------------- Run | Yrd Mat Mat Min Turns Passed 3114 | 66 1352 644 1052 Spaces Moved 1374 | 49 852 194 279 Core 24 | 24 . . . Treads 994 | 25 576 114 279 Legs . | . . . . Wheels 355 | . 276 79 . Hover . | . . . . Flight 1 | . . 1 . Fastest Speed 50 | 50 80 140 305 Average Speed 200 | 113 140 253 363 Slowest Speed 1645 | 160 160 1645 465 Overloaded Moves . | . . . . Propulsion Burnouts . | . . . . Robots Hopped . | . . . . Potential Cave-ins . | . . . . Cave-ins Triggered . | . . . . Exploration Rate (%) 45 | 3 98 27 54 Regions Visited 3 Branch Regions 1 Pre-discovered Areas . | . . . . Known Exits Taken . | . . . . Unknown Exits Taken 3 | 1 1 1 . Scrap Searched 1 | . . . 1 Spaces Dug . | . . . . Terrain Destroyed 119 | . 52 . 67 Melee . | . . . . Projectile . | . . . . AOE 119 | . 52 . 67 Terrain Rammed . | . . . . Walls Destroyed . | . . . . Machines Disabled . | . . . . Actions | -11 -10 -9 -9 --------- Run | Yrd Mat Mat Min Total 1566 | 60 941 268 297 Wait 4 | . 4 . . Move 1371 | 48 851 193 279 Hop . | . . . . Pick Up 51 | 6 23 21 1 Fast Attach 2 | . 2 . . Attach 17 | 6 1 7 3 Detach . | . . . . Swap 20 | . 12 5 3 Drop 12 | . 11 1 . Fire 88 | . 37 41 10 Melee . | . . . . Ram . | . . . . Kick . | . . . . Crush 1 | . . . 1 Escape Stasis . | . . . . Rewire . | . . . . Trap . | . . . . Miscellaneous . | . . . . Route ------- -11/Scrapyard -10/Materials (discovered 5 exits: *Mat x3 / [*Min x2]) -9/Materials -9/Mines (discovered 1 exit: [*Exi]) History --------- Turn | Location | Event 9 | -11/Scrapyard | Discovered new exit (range 16) 67 | -11/Scrapyard | Entered Materials 316 | -10/Materials | Build established: Mutant 400 | -10/Materials | Discovered new exit (range 11) 486 | -10/Materials | Discovered new exit (range 13) 786 | -10/Materials | Discovered new exit (range 16) 993 | -10/Materials | Discovered new exit (range 15) 1129 | -10/Materials | Discovered new exit (range 16) 1419 | -10/Materials | Entered another Materials area 1419 | -9/Materials | Evolved 2 slots: Utility x2 1567 | -9/Materials | Destroyed 8 combat bots 1574 | -9/Materials | Lost 4 parts (1p1n2w) 2033 | -9/Materials | Discovered new exit (range 9) 2063 | -9/Materials | Entered Mines 2201 | -9/Mines | Deemed a non-threat by the Exiles lab entrance 2201 | -9/Mines | Discovered new exit (range 5) 2315 | -9/Mines | Assembled infested the area 2330 | -9/Mines | Core integrity fell below 50% 2365 | -9/Mines | System corruption reached 10% 2395 | -9/Mines | Lost 3 parts (2u1w) 2491 | -9/Mines | Learned Materials non-interactive machine intel 2875 | -9/Mines | YI-UF0 nonchalantly dropped a Grenade Launcher on the ground 3106 | -9/Mines | Core integrity fell below 20% 3115 | -9/Mines | Destroyed by YI-UF0 with YI-UF0's Doublenader Last Messages --------------- [Achievement: For Emergencies Only] System corrupted: Energy discharge (-38). System corrupted: Matter fused (-6). System corrupted: Matter fused (-7). System corrupted: Heat flow error (+217). Acquired Grenade Launcher. YI-UF0 mumbles something. System corrupted: FCS attempts to trigger Rocket Launcher. System corrupted: Rocket Launcher misfires. U-05 Engineer destroyed. YI-UF0: "WHAAM!" YI-UF0: "Whaaaaaaaa!" YI-UF0 mumbles something. The unstable cave ceiling collapses. System corrupted: Energy discharge (-28). Grenade Launcher destroyed. Rocket Launcher destroyed. Adv. Treads destroyed. T-07 Excavator destroyed. YI-UF0 mumbles something. Map ----- +----------------------------------------------------+ | ???????###???????????????????????????????????????? | | ???##?# ##??????????????????????????????????????? | | ???? ## ##?????????????????????????????????????? | | ??? ###???????????????????????????????????? | | #### ##??????????????????????????????????? | | #??????????????????????????????????? | | #??????????????????????????????????? | | #???????????????????????????????????? | | ?# #?????#####?????????????????????????? | | # # #?????# #?????????????????????????? | | ### #????## #?????????????????????????? | | # #????## #?????????????????????????? | | ####?# #??????????????????????????? | | #### % #?# #???????????????????????????? | | ##### ## ### #????????????????????????????? | | # # # ### #?#####???????????????????????? | | # #####?##### #### ##??????????????????????? | | ###?????????# #?# #??????????#???????????? | | #?????????# ### ###??##### #???????????? | | ###?????????# !% #### ?????????????? | | ###???????????# # ##?????????????? | | ###????????????###### #?????????????? | | #???????????????### ###???????????? | | ###???????????##### #???????????? | | ?????????????## ## g #??????????? | | ??????# ### @ #??????????? | | ?????# #?????????? | | ?????# #?????????? | | ????# #### # # ?????????? | | ???# #???### ###?#?## ?????????? | | ??# """ ??????### # ###??????# #?????????? | | ??# """ ?????????####?????????## #?????????? | | ??????""" ????????????????????????### #?????????? | | ?????? ???????????????????????????? #?????????? | | ?????? ??????????????????????????????#?????????? | | ????? ?????????????????????????????????????????? | | ????### ?????????????????????????????????????????? | | ??????#??????????????????????????????????????????? | | ?????????????????????????????????????????????????? | | ?????????????????????????????????????????????????? | | ?????????????????????????????????????????????????? | | ?????????????????????????????????????????????????? | | ?????????????????????????????????????????????????? | | ?????????????????????????????????????????????????? | | ?????????????????????????????????????????????????? | | #????????????????????????????????????????????????? | | #????????????????????????????????????????????????? | | #????????????????????????????????????????????????? | | #????????????????????????????????????????????????? | | #????????????????????????????????????????????????? | +----------------------------------------------------+ Best States ------------- Heat Dissipation 35 Energy Generation 14 Energy Capacity 280 Matter Stores 300 Matter Capacity 400 Sight Range 16 Terrain Scan Density 10 Evasion (%) 50 Targeting Accuracy 18 Recoil Reduction 2 Item Schematics ----------------- None Robot Schematics ------------------ None Fabricated ------------ Nothing Repaired ---------- Nothing Studied --------- Flight Unit | -9/Materials | Hacked Alien Tech Used ----------------- None Achievements -------------- DATA ERROR: Steam Global Achievement% For Emergencies Only I Have A Map? Item+ Maybe Next Time I'll Detach My Launcher Organ Harvest Physics Hates This One Trick System Compromised There's More Where That Came From Challenges ------------ None Game ------ Seed ImprovedBurstAutopenetrator Manual? 0 Play Time 00:43:43 Cumulative 3.7 hours Start 2026.09.11 @ 16:33:36 End 2026.09.11 @ 17:17:20 Sessions 3 Manual Loads 0 Difficulty Rogue Special Mode None Game No. 6 Rogue 6 Adventurer 0 Explorer 0 Win Type - Total 0 Types 0/0/0/0/0/0/0/0/0/0 Lore% 1 Gallery% 5 Achievement% 5 Wizard Run 0 Options --------- Layout 0 ASCII 0 Keyboard 0 Movement Mouse Keybinds 0 Fullscreen 1 Font 36/Smallcaps Map View 76x50 Zoom Use 0% Tactical HUD 0 Map Filters NONE Filters NONE Steam 1 RUN: b25f1a4e-fa5d-4f3f-bae8-f00cc8e37b49